fUST/lending_fUST_20260118
["ID","MTS","AMOUNT","RATE_DAILY","PERIOD"]
[402495572,1768687843541,-157.03592371,0.00014996,2]
[402495574,1768687843551,-10000.0,0.00015057,2]
[402495576,1768687843560,-1308.98,0.00015057,2]
[402495578,1768687843570,-10000.0,0.00015114,2]
[402495580,1768687843580,-10000.0,0.00015114,2]
[402495582,1768687843590,-10000.0,0.00015114,2]
[402495584,1768687843599,-2317.5,0.00015114,2]
[402495586,1768687843610,-196.59507737,0.00015178,2]
[402495588,1768687843619,-1200.0,0.00015316,2]
[402495590,1768687843629,-2000.0,0.00015342,2]
[402495591,1768687843638,-2000.0,0.00015342,2]
[402495593,1768687843648,-2000.0,0.00015342,2]
[402495595,1768687843657,-2000.0,0.00015342,2]
[402495597,1768687843667,-157.0359237,0.00015416,2]
[402495599,1768687843676,-2500.0,0.00015464,2]
[402495601,1768687843686,-500.0,0.00015464,2]
[402495603,1768687843695,-160.0,0.00015571,2]
[402495605,1768687843705,-1041.66666667,0.00015571,2]
[402495606,1768687843714,-587.0,0.00015832,2]
[402495608,1768687843724,-903.86573033,0.00015864,2]
[402495610,1768687843733,-1206.13735223,0.0001589,2]
[402495612,1768687843743,-2500.0,0.0001589,2]
[402495614,1768687843753,-30000.0,0.00015939,2]
[402495616,1768687843763,-162.380719,0.00015939,2]
[402495618,1768687843772,-445.202766,0.00015939,2]
[402495620,1768687843782,-151.0,0.00015939,2]
[402495622,1768687843792,-151.0,0.00015939,2]
[402495624,1768687843801,-151.0,0.00015939,2]
[402495626,1768687843811,-201.18700456,0.00015939,2]
[402495628,1768687843821,-250.0,0.00015939,2]
[402495630,1768687843831,-250.0,0.00015939,2]
[402495632,1768687843841,-250.0,0.00015939,2]
[402495634,1768687843851,-250.0,0.00015939,2]
[402495636,1768687843861,-2000.0,0.00015939,2]
[402495638,1768687843871,-2000.0,0.00015939,2]
[402495640,1768687843881,-2000.0,0.00015939,2]
[402495642,1768687843891,-151.0,0.00015939,2]
[402495644,1768687843902,-2000.0,0.00015939,2]
[402495646,1768687843912,-151.0,0.00015939,2]
[402495648,1768687843921,-2000.0,0.00015939,2]
[402495650,1768687843931,-2000.0,0.00015939,2]
[402495652,1768687843941,-2000.0,0.00015939,2]
[402495654,1768687843951,-1957.856,0.00015939,2]
[402495656,1768687843961,-2000.0,0.00015939,2]
[402495658,1768687843971,-2000.0,0.00015939,2]
[402495660,1768687843980,-300.73,0.00015939,2]
[402495662,1768687843990,-2000.0,0.00015939,2]
[402495664,1768687844000,-500.0,0.00015939,2]
[402495666,1768687844010,-2000.0,0.00015939,2]
[402495667,1768687844020,-500.0,0.00015939,2]
[402495669,1768687844029,-500.0,0.00015939,2]
[402495671,1768687844040,-2000.0,0.00015939,2]
[402495673,1768687844049,-500.0,0.00015939,2]
[402495675,1768687844060,-2000.0,0.00015939,2]
[402495677,1768687844070,-500.0,0.00015939,2]
[402495679,1768687844080,-2000.0,0.00015939,2]
[402495681,1768687844091,-500.0,0.00015939,2]
[402495683,1768687844102,-2000.0,0.00015939,2]
[402495685,1768687844112,-500.0,0.00015939,2]
[402495687,1768687844123,-162.380719,0.00015939,2]
[402495689,1768687844132,-500.0,0.00015939,2]
[402495691,1768687844143,-168.3888056,0.00015939,2]
[402495693,1768687844153,-2000.0,0.00015939,2]
[402495695,1768687844164,-500.0,0.00015939,2]
[402495697,1768687844174,-174.61919141,0.00015939,2]
[402495699,1768687844184,-2000.0,0.00015939,2]
[402495701,1768687844194,-500.0,0.00015939,2]
[402495703,1768687844204,-2000.0,0.00015939,2]
[402495705,1768687844214,-181.08010149,0.00015939,2]
[402495707,1768687844227,-500.0,0.00015939,2]
[402495709,1768687844239,-2000.0,0.00015939,2]
[402495711,1768687844252,-187.78006525,0.00015939,2]
[402495713,1768687844262,-500.0,0.00015939,2]
[402495715,1768687844272,-2000.0,0.00015939,2]
[402495717,1768687844282,-194.72792766,0.00015939,2]
[402495719,1768687844295,-500.0,0.00015939,2]
[402495721,1768687844306,-2150.738,0.00015939,2]
[402495723,1768687844316,-500.0,0.00015939,2]
[402495725,1768687844331,-500.0,0.00015939,2]
[402495727,1768687844341,-500.0,0.00015939,2]
[402495729,1768687844351,-500.0,0.00015939,2]
[402495731,1768687844360,-500.0,0.00015939,2]
[402495733,1768687844370,-201.93286099,0.00015939,2]
[402495735,1768687844380,-209.40437684,0.00015939,2]
[402495737,1768687844390,-217.15233878,0.00015939,2]
[402495739,1768687844399,-225.18697532,0.00015939,2]
[402495741,1768687844409,-233.51889341,0.00015939,2]
[402495743,1768687844420,-242.15909246,0.00015939,2]
[402495745,1768687844429,-251.11897888,0.00015939,2]
[402495747,1768687844439,-260.4103811,0.00015939,2]
[402495749,1768687844449,-270.0455652,0.00015939,2]
[402495751,1768687844459,-280.03725112,0.00015939,2]
[402495753,1768687844468,-2030.296672,0.00015994,2]
[402495755,1768687844480,-3000.0,0.00016,2]
[402495757,1768687844490,-3000.0,0.0001601,2]
[402495758,1768687844500,-3000.0,0.00016012,2]
[402495760,1768687844510,-3000.0,0.0001602,2]
[402495762,1768687844520,-3000.0,0.0001603,2]
[402495764,1768687844530,-3000.0,0.0001604,2]
[402495766,1768687844540,-2105.41764886,0.00016049,2]
[402495768,1768687844550,-3000.0,0.0001605,2]
[402495770,1768687844561,-3000.0,0.0001606,2]
[402495772,1768687844570,-3000.0,0.0001607,2]
[402495780,1768687844791,-3000.0,0.0001608,2]
[402495783,1768687844836,-3000.0,0.0001609,2]
[402495785,1768687844847,-3000.0,0.000161,2]
[402495788,1768687844856,-2183.31810187,0.00016104,2]
[402495789,1768687844866,-3000.0,0.0001611,2]
[402495791,1768687844876,-3000.0,0.0001612,2]
[402495793,1768687844885,-3000.0,0.0001613,2]
[402495795,1768687844896,-3000.0,0.0001614,2]
[402495797,1768687844905,-3000.0,0.0001615,2]
[402495799,1768687844916,-2264.10087164,0.00016159,2]
[402495801,1768687844926,-3000.0,0.0001616,2]
[402495803,1768687844936,-3000.0,0.0001617,2]
[402495805,1768687844945,-3000.0,0.0001618,2]
[402495807,1768687844955,-3000.0,0.0001619,2]
[402495809,1768687844964,-3000.0,0.000162,2]
[402495811,1768687844974,-3000.0,0.0001621,2]
[402495813,1768687844983,-263.30228,0.0001621,2]
[402495815,1768687844993,-263.30228,0.0001621,2]
[402495817,1768687845003,-263.30228,0.0001621,2]
[402495819,1768687845012,-263.30228,0.0001621,2]
[402495821,1768687845023,-2347.87260389,0.00016214,2]
[402495823,1768687845033,-3000.0,0.0001622,2]
[402495825,1768687845042,-3000.0,0.0001623,2]
[402495827,1768687845052,-3000.0,0.0001624,2]
[402495830,1768687845063,-3000.0,0.0001625,2]
[402495831,1768687845072,-3000.0,0.0001626,2]
[402495833,1768687845081,-1108.5730946,0.00016269,2]
[402495835,1768687845091,-3000.0,0.0001627,2]
[402495837,1768687845100,-3000.0,0.0001628,2]
[402495839,1768687845111,-3000.0,0.0001629,2]
[402495841,1768687845121,-3000.0,0.000163,2]
[402495843,1768687845131,-3000.0,0.0001631,2]
[402495845,1768687845141,-3000.0,0.0001632,2]
[402495847,1768687845151,-3000.0,0.0001633,2]
[402495849,1768687845161,-3000.0,0.0001634,2]
[402495851,1768687845170,-3000.0,0.0001635,2]
[402495853,1768687845180,-3000.0,0.0001636,2]
[402495855,1768687845190,-3000.0,0.0001637,2]
[402495857,1768687845199,-3000.0,0.0001638,2]
[402495859,1768687845208,-3000.0,0.0001639,2]
[402495861,1768687845218,-3000.0,0.000164,2]
[402495863,1768687845227,-3000.0,0.0001641,2]
[402495865,1768687845236,-748.038426,0.0001641,7]
[402495867,1768687845245,-3000.0,0.0001642,2]
[402495869,1768687845258,-424.303318,0.0001642,7]
[402495871,1768687845268,-349.102974,0.0001642,7]
[402495873,1768687845277,-3000.0,0.00016428,2]
[402495875,1768687845287,-330.906133,0.00016428,7]
[402495877,1768687845298,-3000.0,0.0001643,2]
[402495879,1768687845308,-725.614003,0.0001643,7]
[402495881,1768687845319,-180.95,0.00016437,2]
[402495884,1768687845330,-555.033703,0.00016437,7]
[402495885,1768687845339,-364.024933,0.00016437,7]
[402495888,1768687845349,-500.0,0.00016438,3]
[402495890,1768687845358,-500.0,0.00016438,3]
[402495892,1768687845367,-500.0,0.00016438,3]
[402495894,1768687845376,-500.0,0.00016438,3]
[402495896,1768687845386,-500.0,0.00016438,3]
[402495897,1768687845395,-500.0,0.00016438,3]
[402495900,1768687845404,-500.0,0.00016438,3]
[402495902,1768687845413,-500.0,0.00016438,3]
[402495903,1768687845423,-151.0,0.00016438,3]
[402495905,1768687845432,-500.0,0.00016438,3]
[402495907,1768687845440,-500.0,0.00016438,3]
[402495909,1768687845450,-500.0,0.00016438,3]
[402495911,1768687845458,-500.0,0.00016438,3]
[402495912,1768687845467,-500.0,0.00016438,3]
[402495914,1768687845476,-1000.0,0.00016438,2]
[402495916,1768687845486,-500.0,0.00016438,3]
[402495918,1768687845495,-500.0,0.00016438,3]
[402495920,1768687845504,-500.0,0.00016438,3]
[402495922,1768687845514,-500.0,0.00016438,3]
[402495924,1768687845523,-500.0,0.00016438,3]
[402495926,1768687845533,-500.0,0.00016438,3]
[402495928,1768687845542,-500.0,0.00016438,3]
[402495930,1768687845551,-500.0,0.00016438,3]
[402495932,1768687845561,-172.631544,0.00016438,3]
[402495934,1768687845570,-554.19378487,0.00016438,3]
[402495936,1768687845580,-500.0,0.00016438,3]
[402495938,1768687845588,-158.856128,0.00016438,3]
[402495940,1768687845598,-500.0,0.00016438,3]
[402495942,1768687845608,-500.0,0.00016438,3]
[402495944,1768687845617,-500.0,0.00016438,3]
[402495946,1768687845626,-500.0,0.00016438,3]
[402495948,1768687845636,-500.0,0.00016438,3]
[402495950,1768687845646,-500.0,0.00016438,3]
[402495952,1768687845655,-560.83,0.00016438,3]
[402495954,1768687845665,-500.0,0.00016438,3]
[402495956,1768687845674,-620.36,0.00016438,3]
[402495958,1768687845683,-500.0,0.00016438,3]
[402495960,1768687845692,-500.0,0.00016438,3]
[402495962,1768687845701,-264.29964932,0.00016438,3]
[402495964,1768687845711,-500.0,0.00016438,3]
[402495966,1768687845719,-485.87912065,0.00016438,3]
[402495968,1768687845731,-500.0,0.00016438,3]
[402495970,1768687845740,-500.0,0.00016438,3]
[402495972,1768687845752,-500.0,0.00016438,3]
[402495974,1768687845762,-500.0,0.00016438,3]
[402495976,1768687845773,-500.0,0.00016438,3]
[402495978,1768687845784,-500.0,0.00016438,3]
[402495980,1768687845793,-527.42325342,0.00016438,3]
[402495982,1768687845803,-500.0,0.00016438,3]
[402495984,1768687845813,-500.0,0.00016438,3]
[402495986,1768687845822,-500.0,0.00016438,3]
[402495988,1768687845831,-500.0,0.00016438,3]
[402495990,1768687845840,-500.0,0.00016438,3]
[402495992,1768687845850,-500.0,0.00016438,3]
[402495994,1768687845859,-500.0,0.00016438,3]
[402495995,1768687845868,-500.41163079,0.00016438,3]
[402495997,1768687845878,-500.0,0.00016438,3]
[402495999,1768687845889,-225.94247433,0.00016438,3]
[402496001,1768687845899,-643.98345217,0.00016438,3]
[402496003,1768687845908,-500.0,0.00016438,3]
[402496005,1768687845917,-500.0,0.00016438,3]
[402496008,1768687845927,-500.0,0.00016438,3]
[402496011,1768687845937,-504.02216576,0.00016438,3]
[402496014,1768687845947,-500.0,0.00016438,3]
[402496015,1768687845959,-531.66,0.00016438,3]
[402496017,1768687845970,-500.0,0.00016438,3]
[402496020,1768687845981,-500.0,0.00016438,3]
[402496022,1768687845991,-500.0,0.00016438,3]
[402496023,1768687846002,-500.0,0.00016438,3]
[402496026,1768687846012,-705.44,0.00016438,3]
[402496028,1768687846023,-500.0,0.00016438,3]
[402496029,1768687846032,-544.53494198,0.00016438,3]
[402496032,1768687846043,-500.0,0.00016438,3]
[402496034,1768687846052,-500.0,0.00016438,3]
[402496035,1768687846062,-500.0,0.00016438,3]
[402496037,1768687846072,-500.0,0.00016438,3]
[402496040,1768687846082,-500.0,0.00016438,2]
[402496042,1768687846092,-500.0,0.00016438,3]
[402496044,1768687846101,-500.0,0.00016438,3]
[402496045,1768687846111,-720.49,0.00016438,3]
[402496048,1768687846121,-500.0,0.00016438,3]
[402496050,1768687846131,-525.66,0.00016438,3]
[402496052,1768687846141,-500.0,0.00016438,3]
[402496053,1768687846151,-505.85783189,0.00016438,3]
[402496056,1768687846161,-500.0,0.00016438,3]
[402496057,1768687846170,-1268.1,0.00016438,3]
[402496059,1768687846181,-500.0,0.00016438,3]
[402496061,1768687846190,-500.0,0.00016438,3]
[402496063,1768687846202,-500.0,0.00016438,3]
[402496065,1768687846212,-500.0,0.00016438,3]
[402496067,1768687846221,-500.0,0.00016438,3]
[402496069,1768687846231,-500.0,0.00016438,3]
[402496071,1768687846242,-500.0,0.00016438,3]
[402496073,1768687846254,-564.62,0.00016438,3]
[402496075,1768687846265,-469.18172049,0.00016438,3]
[402496077,1768687846274,-500.0,0.00016438,3]
[402496079,1768687846283,-500.0,0.00016438,3]
[402496081,1768687846295,-500.0,0.00016438,3]
[402496083,1768687846305,-500.0,0.00016438,3]
[402496085,1768687846314,-500.0,0.00016438,3]
[402496087,1768687846326,-500.0,0.00016438,3]
[402496089,1768687846336,-500.0,0.00016438,3]
[402496091,1768687846345,-968.74,0.00016438,3]
[402496093,1768687846354,-509.99937096,0.00016438,3]
[402496095,1768687846364,-500.0,0.00016438,3]
[402496097,1768687846372,-500.0,0.00016438,3]
[402496099,1768687846382,-500.0,0.00016438,3]
[402496101,1768687846392,-760.21,0.00016438,3]
[402496103,1768687846401,-500.0,0.00016438,3]
[402496105,1768687846410,-500.0,0.00016438,3]
[402496107,1768687846419,-500.0,0.00016438,3]
[402496108,1768687846428,-1212.85,0.00016438,3]
[402496110,1768687846438,-500.0,0.00016438,3]
[402496113,1768687846447,-500.0,0.00016438,3]
[402496115,1768687846457,-500.0,0.00016438,3]
[402496116,1768687846467,-709.13,0.00016438,3]
[402496119,1768687846476,-500.0,0.00016438,3]
[402496121,1768687846486,-500.0,0.00016438,3]
[402496122,1768687846496,-701.58,0.00016438,3]
[402496124,1768687846505,-500.0,0.00016438,3]
[402496127,1768687846515,-500.0,0.00016438,3]
[402496128,1768687846524,-500.0,0.00016438,3]
[402496130,1768687846535,-500.0,0.00016438,3]
[402496132,1768687846544,-500.0,0.00016438,3]
[402496134,1768687846554,-500.0,0.00016438,3]
[402496136,1768687846563,-500.0,0.00016438,3]
[402496138,1768687846572,-500.0,0.00016438,3]
[402496140,1768687846583,-500.0,0.00016438,3]
[402496142,1768687846593,-1040.56,0.00016438,3]
[402496144,1768687846603,-478.32257424,0.00016438,3]
[402496146,1768687846612,-500.0,0.00016438,3]
[402496148,1768687846622,-500.0,0.00016438,3]
[402496150,1768687846632,-500.0,0.00016438,3]
[402496152,1768687846641,-151.0,0.00016438,2]
[402496154,1768687846651,-1247.67,0.00016438,3]
[402496156,1768687846660,-500.0,0.00016438,3]
[402496158,1768687846670,-500.0,0.00016438,3]
[402496160,1768687846680,-811.2,0.00016438,3]
[402496162,1768687846690,-500.0,0.00016438,3]
[402496164,1768687846699,-500.0,0.00016438,3]
[402496166,1768687846709,-500.0,0.00016438,3]
[402496168,1768687846718,-500.0,0.00016438,3]
[402496170,1768687846727,-500.0,0.00016438,3]
[402496172,1768687846736,-500.0,0.00016438,3]
[402496174,1768687846746,-500.0,0.00016438,3]
[402496176,1768687846756,-500.0,0.00016438,3]
[402496177,1768687846766,-613.24737358,0.00016438,3]
[402496179,1768687846776,-500.0,0.00016438,3]
[402496181,1768687846785,-500.0,0.00016438,3]
[402496183,1768687846794,-717.14,0.00016438,3]
[402496185,1768687846804,-500.0,0.00016438,3]
[402496187,1768687846814,-500.0,0.00016438,2]
[402496189,1768687846823,-500.0,0.00016438,3]
[402496191,1768687846833,-500.0,0.00016438,3]
[402496193,1768687846842,-500.0,0.00016438,3]
[402496195,1768687846853,-464.68587701,0.00016438,3]
[402496198,1768687846864,-653.71,0.00016438,3]
[402496200,1768687846874,-500.0,0.00016438,3]
[402496201,1768687846883,-500.0,0.00016438,3]
[402496203,1768687846892,-500.0,0.00016438,3]
[402496205,1768687846902,-325.21716664,0.00016438,3]
[402496207,1768687846911,-500.0,0.00016438,3]
[402496209,1768687846921,-500.0,0.00016438,3]
[402496211,1768687846931,-764.69,0.00016438,3]
[402496213,1768687846940,-500.0,0.00016438,3]
[402496215,1768687846950,-1000.0,0.00016438,2]
[402496217,1768687846959,-500.0,0.00016438,3]
[402496219,1768687846969,-500.0,0.00016438,3]
[402496221,1768687846978,-500.0,0.00016438,3]
[402496223,1768687846988,-500.0,0.00016438,3]
[402496225,1768687846997,-500.0,0.00016438,3]
[402496227,1768687847007,-501.8453365,0.00016438,3]
[402496229,1768687847017,-500.0,0.00016438,3]
[402496231,1768687847028,-500.0,0.00016438,3]
[402496233,1768687847037,-500.0,0.00016438,3]
[402496235,1768687847046,-500.0,0.00016438,3]
[402496237,1768687847055,-500.0,0.00016438,3]
[402496239,1768687847065,-500.0,0.00016438,3]
[402496241,1768687847074,-517.83,0.00016438,3]
[402496243,1768687847084,-577.4,0.00016438,3]
[402496245,1768687847094,-500.0,0.00016438,3]
[402496247,1768687847104,-500.0,0.00016438,3]
[402496255,1768687847178,-500.0,0.00016438,3]
[402496257,1768687847188,-500.0,0.00016438,3]
[402496259,1768687847197,-500.0,0.00016438,3]
[402496261,1768687847207,-500.0,0.00016438,3]
[402496263,1768687847216,-918.79,0.00016438,3]
[402496265,1768687847225,-500.0,0.00016438,3]
[402496267,1768687847235,-500.0,0.00016438,3]
[402496269,1768687847245,-501.58858315,0.00016438,3]
[402496271,1768687847258,-500.0,0.00016438,3]
[402496273,1768687847267,-594.23,0.00016438,3]
[402496275,1768687847277,-151.0,0.00016438,2]
[402496277,1768687847286,-500.0,0.00016438,3]
[402496279,1768687847297,-500.0,0.00016438,3]
[402496281,1768687847307,-1276.22,0.00016438,3]
[402496282,1768687847317,-500.0,0.00016438,3]
[402496284,1768687847330,-500.0,0.00016438,3]
[402496286,1768687847339,-926.45,0.00016438,3]
[402496288,1768687847349,-500.0,0.00016438,3]
[402496290,1768687847358,-500.0,0.00016438,3]
[402496292,1768687847368,-500.0,0.00016438,3]
[402496294,1768687847377,-500.0,0.00016438,2]
[402496296,1768687847386,-500.0,0.00016438,2]
[402496298,1768687847396,-473.31431115,0.00016438,2]
[402496300,1768687847405,-500.0,0.00016438,3]
[402496302,1768687847414,-500.0,0.00016438,3]
[402496304,1768687847423,-500.0,0.00016438,3]
[402496306,1768687847433,-549.36,0.00016438,3]
[402496308,1768687847442,-748.74,0.00016438,3]
[402496310,1768687847451,-651.61,0.00016438,3]
[402496312,1768687847461,-500.0,0.00016438,3]
[402496314,1768687847470,-500.0,0.00016438,3]
[402496316,1768687847480,-500.0,0.00016438,3]
[402496318,1768687847489,-500.0,0.00016438,3]
[402496320,1768687847498,-500.0,0.00016438,3]
[402496322,1768687847507,-500.0,0.00016438,3]
[402496324,1768687847517,-535.27896173,0.00016438,3]
[402496326,1768687847526,-902.19,0.00016438,3]
[402496328,1768687847536,-500.0,0.00016438,3]
[402496330,1768687847545,-500.0,0.00016438,3]
[402496332,1768687847554,-500.0,0.00016438,3]
[402496334,1768687847564,-905.84,0.00016438,3]
[402496336,1768687847574,-500.0,0.00016438,3]
[402496338,1768687847583,-500.0,0.00016438,3]
[402496339,1768687847593,-692.54,0.00016438,3]
[402496341,1768687847602,-1038.57,0.00016438,3]
[402496343,1768687847611,-500.0,0.00016438,3]
[402496345,1768687847620,-500.0,0.00016438,3]
[402496347,1768687847629,-674.51,0.00016438,3]
[402496349,1768687847638,-551.81,0.00016438,3]
[402496351,1768687847647,-500.0,0.00016438,3]
[402496353,1768687847656,-500.0,0.00016438,3]
[402496355,1768687847665,-500.0,0.00016438,3]
[402496357,1768687847674,-500.0,0.00016438,3]
[402496359,1768687847682,-517.81430866,0.00016438,3]
[402496360,1768687847691,-500.0,0.00016438,3]
[402496362,1768687847700,-500.0,0.00016438,3]
[402496364,1768687847709,-500.0,0.00016438,3]
[402496366,1768687847718,-500.0,0.00016438,3]
[402496368,1768687847728,-500.0,0.00016438,3]
[402496370,1768687847737,-534.44,0.00016438,3]
[402496372,1768687847746,-500.0,0.00016438,3]
[402496374,1768687847755,-500.0,0.00016438,3]
[402496376,1768687847765,-500.0,0.00016438,3]
[402496378,1768687847775,-500.0,0.00016438,3]
[402496380,1768687847784,-500.0,0.00016438,3]
[402496382,1768687847793,-520.86,0.00016438,3]
[402496384,1768687847804,-172.6105479,0.00016438,3]
[402496386,1768687847815,-500.0,0.00016438,3]
[402496388,1768687847824,-935.84,0.00016438,3]
[402496390,1768687847833,-500.0,0.00016438,3]
[402496392,1768687847842,-1204.98,0.00016438,3]
[402496393,1768687847851,-500.0,0.00016438,3]
[402496395,1768687847860,-500.0,0.00016438,3]
[402496397,1768687847869,-500.0,0.00016438,3]
[402496400,1768687847878,-500.0,0.00016438,3]
[402496401,1768687847887,-500.0,0.00016438,3]
[402496403,1768687847896,-500.0,0.00016438,3]
[402496405,1768687847906,-500.0,0.00016438,3]
[402496407,1768687847915,-1112.65,0.00016438,3]
[402496409,1768687847923,-500.0,0.00016438,3]
[402496411,1768687847933,-660.45,0.00016438,3]
[402496413,1768687847941,-500.0,0.00016438,3]
[402496415,1768687847950,-500.0,0.00016438,3]
[402496417,1768687847959,-500.0,0.00016438,3]
[402496419,1768687847968,-500.0,0.00016438,3]
[402496421,1768687847977,-282.629869,0.00016438,7]
[402496423,1768687847985,-507.26,0.00016438,3]
[402496425,1768687847994,-500.0,0.00016438,3]
[402496427,1768687848003,-500.0,0.00016438,3]
[402496429,1768687848012,-500.0,0.00016438,3]
[402496431,1768687848021,-500.0,0.00016438,3]
[402496433,1768687848031,-500.0,0.00016438,3]
[402496435,1768687848040,-500.0,0.00016438,3]
[402496437,1768687848049,-512.1,0.00016438,3]
[402496438,1768687848058,-500.0,0.00016438,3]
[402496440,1768687848069,-1337.44,0.00016438,3]
[402496442,1768687848078,-500.0,0.00016438,3]
[402496444,1768687848087,-500.0,0.00016438,3]
[402496446,1768687848097,-500.0,0.00016438,3]
[402496448,1768687848106,-500.0,0.00016438,3]
[402496450,1768687848115,-500.0,0.00016438,3]
[402496452,1768687848124,-500.0,0.00016438,3]
[402496454,1768687848134,-500.0,0.00016438,3]
[402496456,1768687848143,-500.0,0.00016438,3]
[402496457,1768687848151,-500.0,0.00016438,3]
[402496459,1768687848161,-500.0,0.00016438,3]
[402496461,1768687848170,-500.0,0.00016438,3]
[402496463,1768687848180,-500.0,0.00016438,3]
[402496465,1768687848189,-500.0,0.00016438,3]
[402496467,1768687848198,-500.0,0.00016438,3]
[402496469,1768687848207,-500.0,0.00016438,3]
[402496471,1768687848217,-1290.76,0.00016438,3]
[402496473,1768687848227,-500.0,0.00016438,3]
[402496475,1768687848237,-500.0,0.00016438,3]
[402496477,1768687848246,-481.66318474,0.00016438,3]
[402496479,1768687848259,-500.0,0.00016438,3]
[402496481,1768687848268,-500.0,0.00016438,3]
[402496483,1768687848278,-565.1,0.00016438,3]
[402496485,1768687848287,-500.0,0.00016438,3]
[402496487,1768687848297,-1077.86,0.00016438,3]
[402496489,1768687848306,-500.0,0.00016438,3]
[402496491,1768687848315,-590.51,0.00016438,3]
[402496493,1768687848325,-1221.92,0.00016438,3]
[402496495,1768687848335,-616.9,0.00016438,3]
[402496497,1768687848344,-568.78,0.00016438,3]
[402496499,1768687848353,-546.515029,0.00016438,7]
[402496501,1768687848362,-500.0,0.00016438,3]
[402496502,1768687848372,-500.0,0.00016438,3]
[402496504,1768687848381,-702.99,0.00016438,3]
[402496506,1768687848391,-805.22,0.00016438,3]
[402496508,1768687848400,-500.0,0.00016438,3]
[402496510,1768687848409,-500.0,0.00016438,3]
[402496512,1768687848418,-500.0,0.00016438,3]
[402496514,1768687848428,-500.0,0.00016438,3]
[402496516,1768687848437,-500.0,0.00016438,3]
[402496518,1768687848447,-500.0,0.00016438,3]
[402496520,1768687848456,-500.0,0.00016438,3]
[402496522,1768687848466,-500.0,0.00016438,3]
[402496524,1768687848476,-712.39,0.00016438,3]
[402496525,1768687848485,-500.0,0.00016438,3]
[402496527,1768687848495,-500.0,0.00016438,3]
[402496529,1768687848504,-500.0,0.00016438,3]
[402496531,1768687848514,-424.34553456,0.00016438,3]
[402496533,1768687848524,-500.0,0.00016438,3]
[402496535,1768687848534,-500.0,0.00016438,3]
[402496537,1768687848543,-500.0,0.00016438,3]
[402496539,1768687848552,-649.78,0.00016438,3]
[402496541,1768687848561,-500.0,0.00016438,3]
[402496543,1768687848570,-500.0,0.00016438,3]
[402496545,1768687848580,-551.88,0.00016438,3]
[402496547,1768687848589,-500.0,0.00016438,3]
[402496549,1768687848599,-500.0,0.00016438,3]
[402496551,1768687848608,-949.67,0.00016438,3]
[402496553,1768687848617,-500.0,0.00016438,3]
[402496555,1768687848627,-591.59,0.00016438,3]
[402496557,1768687848636,-500.0,0.00016438,3]
[402496560,1768687848646,-427.39365242,0.00016438,3]
[402496561,1768687848655,-519.22,0.00016438,3]
[402496563,1768687848665,-982.72,0.00016438,3]
[402496566,1768687848675,-500.0,0.00016438,3]
[402496567,1768687848684,-500.0,0.00016438,3]
[402496569,1768687848693,-1026.17,0.00016438,3]